Cogmind - Beta 15 @@@ ROGUE MODE // 2025.08.23 @ 07:48:43 Player: shapeshifter Result: Destroyed by 8R-AWN with 8R-AWN's Boregun Performance ------------- Evolutions (1) 500 Regions Visited (4) 800 Robots Destroyed (17) 85 Value Destroyed (419) 419 Prototype IDs (23) 460 Alien Tech Used (0) 0 Bonus (325) 325 TOTAL SCORE: 2589 Bonus ------- Follower Combat Kills 25 Aligned with FarCom 300 Cogmind --------- Core Integrity 0/400 Matter 287/300 Energy 100/125 System Corruption 8% Temperature Cool (0) Movement Core (450) Ox8 Location -9/Exiles Parts ------- > --- POWER (1) -------- Light Ion Engine > --- PROPULSION (3) --- (None) > --- UTILITY (2) ------ Large Storage Unit Core Shielding > --- WEAPON (3) ------- Particle Gun > --- INVENTORY (15) --- High-capacity Storage Unit Hardlight Generator Latent Energy Streamer Guided Plasma Cannon Grenade Launcher Peak State ------------ > --- POWER ------------ Improved Ion Engine > --- PROPULSION ------- Light Treads Light Treads Improved Treads > --- UTILITY ---------- High-capacity Storage Unit Light Armor Plating > --- WEAPON ----------- EM Shotgun EM Shotgun Latent Energy Streamer > --- INVENTORY -------- Light Ion Engine Light Treads Light Treads Large Storage Unit Core Shielding Hardlight Generator Particle Gun Guided Plasma Cannon Grenade Launcher [Rating: 23] Favorites ----------- Power Improved Ion Engine Engine Improved Ion Engine Propulsion Light Treads Treads Light Treads Utility Light Armor Plating Device Seismic Detector Storage Medium Storage Unit Protection Light Armor Plating Weapon EM Shotgun Energy Gun EM Shotgun Energy Cannon Latent Energy Streamer Ballistic Gun Assault Rifle Launcher Grenade Launcher Build | -11 -10 -9 -9 -9 ------- Run | Yrd Mat Mat Min Exi Slots Evolved 2 | . . 2 . . Power . | . . . . . Propulsion 1 | . . 1 . . Utility . | . . . . . Weapon 1 | . . 1 . . Parts Attached 29 | 8 . 11 1 9 Power 4 | 1 . 2 . 1 Engine 4 | 1 . 2 . 1 Core . | . . . . . Reactor . | . . . . . Propulsion 6 | 2 . 2 . 2 Treads 6 | 2 . 2 . 2 Leg . | . . . . . Wheel . | . . . . . Hover . | . . . . . Flight . | . . . . . Utility 9 | 2 . 3 1 3 Device 1 | 1 . . . . Storage 4 | 1 . 1 . 2 Processor . | . . . . . Hackware . | . . . . . Protection 4 | . . 2 1 1 Artifact . | . . . . . Weapon 10 | 3 . 4 . 3 Energy Gun 7 | 2 . 4 . 1 Energy Cannon 1 | . . . . 1 Ballistic Gun 1 | 1 . . . . Ballistic Cannon . | . . . . . Launcher 1 | . . . . 1 Special Weapon . | . . . . . Impact Weapon . | . . . . . Slashing Weapon . | . . . . . Piercing Weapon . | . . . . . Special Melee Weapon . | . . . . . Unidentified Prototypes . | . . . . . Corrupted Parts 1 | . . . . 1 System Corruption 4 | . . . . 4 Parts Lost 10 | . . . . 10 Power 1 | . . . . 1 Propulsion 5 | . . . . 5 Utility 1 | . . . . 1 Weapon 3 | . . . . 3 Highest Loss Streak 6 | . . . . 6 To Critical Strikes 7 | . . . . 7 Average Backups 9 | 3 5 9 10 11 Power 1 | 1 1 1 1 2 Propulsion 1 | 1 2 1 3 1 Utility 2 | . . 3 4 2 Weapon 3 | . 1 3 2 4 Tool/Special . | . . . . . Unused Backups 11 | . . 2 1 8 Power 3 | . . . . 3 Propulsion 3 | . . 2 1 . Utility 4 | . . . . 4 Weapon 1 | . . . . 1 Tool/Special . | . . . . . Average Slot Usage (%) 87 | . 100 97 100 70 Engine 11 | . 14 11 11 10 Treads 31 | . 28 31 33 32 Device 2 | . 14 3 . . Storage 11 | . 14 11 11 11 Protection 8 | . . 7 11 11 Energy Gun 18 | . 14 30 33 5 Ballistic Gun 2 | . 14 1 . . Peak Build Rating 23 | 7 7 17 17 23 Average Rating 11 | 4 7 15 15 10 On Entrance 9 | . 7 7 17 15 Naked Turns . | . . . . . Heaviest Build 59 | 13 13 28 29 59 Greatest Support 63 | 40 40 63 63 63 Greatest Overweight (x) . | . . . . . Average Overweight (x) . | . . . . . Largest Inventory Capacity 20 | 8 8 10 10 20 Average Capacity 12 | 7 8 9 10 18 Most Carried 16 | 7 6 10 10 16 Average Carried 9 | 3 5 9 9 11 Final Capacity 15 | 8 8 10 10 15 Final Carried 10 | 4 6 10 9 5 Class Distribution -------------------- 51% | Mutant 39% | Tank 5% | Gunner 3% | Scavenger-Mutant Dominant Class ---------------- Mutant | -10/Materials Tank | -9/Materials Tank | -9/Mines Mutant | -9/Exiles Resources | -11 -10 -9 -9 -9 ----------- Run | Yrd Mat Mat Min Exi Matter Collected 740 | 218 78 343 81 20 Remotely . | . . . . . Salvage Created 625 | 20 123 343 133 6 Parts 43 | 2 6 25 10 . Haulers Intercepted 1 | . 1 . . . Recyclers Shooed 1 | . 1 . . . Parts Field Recycled . | . . . . . Retrieved Matter . | . . . . . Parts Self-Destructed . | . . . . . Prevented . | . . . . . Kills | -11 -10 -9 -9 -9 ------- Run | Yrd Mat Mat Min Exi Combat Hostiles Destroyed 14 | . 3 5 3 3 Guns 12 | . 3 5 3 1 AOE 2 | . . . . 2 Classes Destroyed 9 | 1 3 3 1 1 Worker 1 | . . 1 . . Tunneler 1 | 1 . . . . Hauler 1 | . 1 . . . Watcher 3 | . 1 2 . . Swarmer 3 | . 3 . . . Grunt 4 | . . 2 2 . Duelist 1 | . . . 1 . Sentry 3 | . . 3 . . Assembled 3 | . . . . 3 Best Kill Streak 3 | 1 3 2 3 3 Combat Bots Only 3 | . 3 2 3 3 Max Kills in Single Turn 2 | 1 1 2 2 1 Gunslinging 1 | . . . 1 . Exploded 1 | . . . . 1 Melee . | . . . . . Uniques/NPCs Destroyed . | . . . . . Combat | -11 -10 -9 -9 -9 -------- Run | Yrd Mat Mat Min Exi Hostile Shots Fired 152 | . 24 18 8 102 Missed 37 | . 7 4 5 21 Hits 115 | . 17 14 3 81 Melee 1 | . . . . 1 Projectile 114 | . 17 14 3 80 Critical Strikes 43 | . . 1 . 42 Actively Blocked 7 | . . 1 . 6 Damage Taken 1802 | . 148 199 35 1420 Core 436 | . 28 26 . 382 Absorbed by Shields . | . . . . . Redirected to Shielding 97 | . . 40 14 43 Core Remaining (%) 94 | 100 88 . . . Volleys Fired 67 | 2 14 14 4 33 Largest 3 | 2 2 3 3 2 Hottest 135 | 60 60 135 135 90 Shots Fired 130 | 4 28 42 13 43 Gun 125 | 4 28 42 13 38 Cannon 1 | . . . . 1 Launcher 4 | . . . . 4 Special . | . . . . . Kinetic 16 | 2 14 . . . Thermal 12 | . . . . 12 Explosive 4 | . . . . 4 Electromagnetic 98 | 2 14 42 13 27 Robot Hit Streak 8 | 3 7 8 4 7 Robot Miss Streak 12 | 1 3 12 2 3 Penetration Max . | . . . . . Secondary Targets 1 | . . . 1 . Max Gunslinging Chain 1 | . . . 1 . Shots Hit Robots 85 | 3 17 31 9 25 Core Hits 44 | 1 7 18 8 10 Critical Kills . | . . . . . Critical Parts Destroyed . | . . . . . Critical Strikes . | . . . . . Melee Attacks . | . . . . . Impact . | . . . . . Slashing . | . . . . . Piercing . | . . . . . Sneak Attacks . | . . . . . Combat Hostiles . | . . . . . Follow-up Attacks . | . . . . . Damage Inflicted 1311 | 41 338 444 122 366 Guns 874 | 41 274 396 122 41 Cannons . | . . . . . Explosions 310 | . 64 48 . 198 Melee . | . . . . . Ramming 127 | . . . . 127 Kinetic 152 | 28 124 . . . Thermal 119 | . 64 48 . 7 Explosive 189 | . . . . 189 Electromagnetic 724 | 13 150 396 122 43 Impact . | . . . . . Slashing . | . . . . . Piercing . | . . . . . Highest Corruption 8 | . . 1 1 8 Average Corruption 1 | . . 1 1 1 Corruption Purged . | . . . . . Corruption Blocked . | . . . . . Effects 21 | . . 3 5 13 Message Errors 3 | . . 1 . 2 Matter Fused 5 | . . . 3 2 Heat Flow Errors 5 | . . 2 . 3 Energy Discharges 3 | . . . 1 2 Data Loss (minor) 3 | . . . . 3 Misfires 2 | . . . 1 1 Overload Shots . | . . . . . Overflow Damage . | . . . . . Projectiles . | . . . . . Explosions . | . . . . . Melee . | . . . . . Knockbacks . | . . . . . Impact . | . . . . . Kinetic . | . . . . . Secondary . | . . . . . Self-Inflicted Damage . | . . . . . Shots . | . . . . . Rammed 49 | . . . . 49 Targets Rammed 49 | . . . . 49 Kicked . | . . . . . Crushed . | . . . . . Highest Temperature 503 | . . 503 272 267 Average Temperature 106 | . . 126 124 84 Received Heat Transfer 90 | . . 72 18 . Effects 7 | . . 7 . . Energy Bleed 1 | . . 1 . . Interference 1 | . . 1 . . Matter Decay 1 | . . 1 . . Damage (major) 4 | . . 4 . . Siege Activations . | . . . . . Martial Activations . | . . . . . Shielding Activations . | . . . . . Robots Disrupted . | . . . . . Combat Hostiles . | . . . . . Robots Corrupted . | . . . . . Combat Hostiles . | . . . . . Parts Fried . | . . . . . Impact Corruptions . | . . . . . Robots Melted . | . . . . . Combat Hostiles . | . . . . . Parts Melted . | . . . . . Heat Transferred 163 | . 100 . . 63 Parts Sabotaged . | . . . . . Parts Stolen . | . . . . . Parts Stripped . | . . . . . Power Chain Reactions 2 | . 1 1 . . Latent Energy Used 196 | . . . . 196 LE Corruption 3 | . . . . 3 Alert | -11 -10 -9 -9 -9 ------- Run | Yrd Mat Mat Min Exi Maximum Alert Level . | . . . . . Low Security (%) 100 | 100 100 100 100 . Level 1 . | . . . . . Level 2 . | . . . . . Level 3 . | . . . . . Level 4 . | . . . . . Level 5 . | . . . . . High Security . | . . . . . Max Security . | . . . . . Peak Influence 89 | 5 60 82 89 . Initial 19 | . . . 19 . Average 14 | . 13 15 16 . Influence Increases 377 | 5 94 187 91 . Destroy 0b10 Robot/C 240 | . 60 100 80 . Destroy 0b10 Robot/NC 30 | 5 10 15 . . Destroy Leader 68 | . 14 44 10 . Allied During Kill 1 | . . . 1 . Successful Hack 14 | . 7 7 . . Destroy Structure 9 | . 3 6 . . Lose Combat Pursuer 15 | . . 15 . . Influence Decreases 377 | 5 94 137 141 . Entered New Map 31 | . . . 31 . Time Decay 333 | 5 94 137 97 . Lost Ally 13 | . . . 13 . Squads Dispatched 1 | . . . 1 . Investigation . | . . . . . Extermination . | . . . . . Reinforcement . | . . . . . Assault 1 | . . . 1 . Garrison . | . . . . . Intercept . | . . . . . Searches Triggered . | . . . . . Construction Impeded . | . . . . . Haulers Reinforced . | . . . . . Active Scanning Responses . | . . . . . Cargo Convoy Interrupts . | . . . . . Stealth | -11 -10 -9 -9 -9 --------- Run | Yrd Mat Mat Min Exi Distress Signals 1 | . . 1 . . Communications Jammed . | . . . . . Distress Signals . | . . . . . Times Spotted 28 | . 6 12 3 7 Peak Tracking Total 9 | . 4 2 3 9 Tactical Retreats 1 | . . 1 . . Traps | -11 -10 -9 -9 -9 ------- Run | Yrd Mat Mat Min Exi Traps Triggered 1 | . . 1 . . Indirectly . | . . . . . Trap Hack Attempts . | . . . . . Triggered . | . . . . . Disarmed . | . . . . . Reprogrammed . | . . . . . Reused . | . . . . . Traps Extracted . | . . . . . Installed . | . . . . . Triggered . | . . . . . Machines | -11 -10 -9 -9 -9 ---------- Run | Yrd Mat Mat Min Exi Machines Disabled 3 | . . . . 3 Max in Single Turn 1 | . . . . 1 Machines Repaired . | . . . . . Machines Dismantled . | . . . . . Machines Sabotaged . | . . . . . Overloaded Fab Kills . | . . . . . Hacking | -11 -10 -9 -9 -9 --------- Run | Yrd Mat Mat Min Exi Machines Accessed 6 | . 1 3 . 2 Terminals 4 | . 1 3 . . Fabricators . | . . . . . Repair Stations . | . . . . . Recycling Units . | . . . . . Scanalyzers . | . . . . . Garrison Access . | . . . . . Total Hacks 15 | . 3 10 . 2 Successful 7 | . 2 3 . 2 Failed 8 | . 1 7 . . Catastrophic . | . . . . . Database Lockouts . | . . . . . Manual 12 | . 1 10 . 1 Terminals 13 | . 3 10 . . Fabricators . | . . . . . Repair Stations . | . . . . . Recycling Units . | . . . . . Scanalyzers . | . . . . . Garrison Access . | . . . . . Terminal Hacks 4 | . 1 1 . 2 Record 1 | . . . . 1 Branch Access Points 1 | . . 1 . . Registered Components 1 | . 1 . . . Proto ID Catalog 1 | . . . . 1 Fabricator Hacks . | . . . . . Repair Station Hacks . | . . . . . Recycling Unit Hacks . | . . . . . Scanalyzer . | . . . . . Garrison Access Hacks . | . . . . . Unauthorized Hacks 3 | . 1 2 . . Terminals 3 | . 1 2 . . Botnet 3 | . 1 2 . . Fabricators . | . . . . . Repair Stations . | . . . . . Recycling Units . | . . . . . Scanalyzers . | . . . . . Garrison Access . | . . . . . Data Cores Recovered . | . . . . . Used . | . . . . . Hacking Detections 4 | . 1 3 . . Full Trace Events 1 | . 1 . . . Feedback Events . | . . . . . Feedback Blocked . | . . . . . Robot Schematics Acquired . | . . . . . Robots Built . | . . . . . Authchips . | . . . . . Time . | . . . . . Total Robot Build Rating . | . . . . . Part Schematics Acquired . | . . . . . Parts Built . | . . . . . Authchips . | . . . . . Time . | . . . . . Total Part Build Rating . | . . . . . Parts Repaired . | . . . . . Time . | . . . . . Parts Recycled . | . . . . . Recycled Matter . | . . . . . Retrieved Matter . | . . . . . Retrieved Components . | . . . . . Parts Scanalyzed . | . . . . . Part Schematics Acquired . | . . . . . Parts Damaged . | . . . . . Bothacking | -11 -10 -9 -9 -9 ------------ Run | Yrd Mat Mat Min Exi Used RIF Installer . | . . . . . Robots Hacked . | . . . . . Non-combat . | . . . . . Combat . | . . . . . Robot Hacks Applied . | . . . . . Relay Couplers Released . | . . . . . Fabnet Peak Effective % . | . . . . . Robots Rewired . | . . . . . Allies Hacked . | . . . . . Hacks Repelled . | . . . . . Allies | -11 -10 -9 -9 -9 -------- Run | Yrd Mat Mat Min Exi Total Allies 1 | . . . 1 . Largest Group 1 | . . . 1 . Highest-Rated Group 31 | . . . 31 . Highest-Rated Ally 31 | . . . 31 . Total Orders . | . . . . . Ally Attacks 4 | . . . 4 . Total Damage 65 | . . . 65 . Kills 1 | . . . 1 . Allies Corrupted . | . . . . . Allies Melted . | . . . . . Intel | -11 -10 -9 -9 -9 ------- Run | Yrd Mat Mat Min Exi Active Infowar (turns) 542 | 40 318 184 . . Seismic 542 | 40 318 184 . . Robot Analysis Total . | . . . . . Derelict Logs Recovered . | . . . . . Drone Launches . | . . . . . Drone Recoveries . | . . . . . Exploration | -11 -10 -9 -9 -9 ------------- Run | Yrd Mat Mat Min Exi Turns Passed 2518 | 115 318 568 515 1002 Spaces Moved 1264 | 54 168 281 280 481 Core 10 | 10 . . . . Treads 1254 | 44 168 281 280 481 Legs . | . . . . . Wheels . | . . . . . Hover . | . . . . . Flight . | . . . . . Fastest Speed 50 | 50 160 160 160 160 Average Speed 159 | 139 160 160 160 160 Slowest Speed 160 | 160 160 160 160 160 Overloaded Moves . | . . . . . Propulsion Burnouts . | . . . . . Robots Hopped . | . . . . . Potential Cave-ins . | . . . . . Cave-ins Triggered . | . . . . . Exploration Rate (%) 39 | 6 39 25 58 67 Regions Visited 4 Branch Regions 2 Pre-discovered Areas 1 | . . . . 1 Known Exits Taken 1 | . . 1 . . Unknown Exits Taken 3 | 1 1 . 1 . Scrap Searched 2 | . . . 2 . Spaces Dug . | . . . . . Terrain Destroyed 31 | . 2 6 . 23 Melee . | . . . . . Projectile . | . . . . . AOE 31 | . 2 6 . 23 Terrain Rammed . | . . . . . Walls Destroyed . | . . . . . Machines Disabled . | . . . . . Actions | -11 -10 -9 -9 -9 --------- Run | Yrd Mat Mat Min Exi Total 1636 | 89 189 373 339 646 Wait 157 | 15 6 40 52 44 Move 1260 | 53 167 280 279 481 Hop . | . . . . . Pick Up 38 | 11 2 16 1 8 Fast Attach 1 | . . 1 . . Attach 23 | 7 . 5 . 11 Detach 6 | . . . . 6 Swap 13 | 1 . 5 1 6 Drop 22 | . . 12 2 8 Fire 67 | 2 14 14 4 33 Melee . | . . . . . Ram . | . . . . . Kick . | . . . . . Crush 49 | . . . . 49 Escape Stasis . | . . . . . Rewire . | . . . . . Trap . | . . . . . Miscellaneous . | . . . . . Route ------- -11/Scrapyard -10/Materials (discovered 2 exits: *Mat / [*Min]) -9/Materials (discovered 4 exits: [*Mat] / *Min x2 / Sto) -9/Mines (discovered 2 exits: [*Mat] / *Exi) -9/Exiles History --------- Turn | Location | Event 3 | -11/Scrapyard | Discovered new exit (range 16) 116 | -11/Scrapyard | Entered Materials 137 | -10/Materials | Discovered new exit (range 12) 286 | -10/Materials | Discovered new exit (range 16) 307 | -10/Materials | Build established: Mutant 434 | -10/Materials | Entered another Materials area 434 | -9/Materials | Evolved 2 slots: Propulsion x1, Weapon x1 780 | -9/Materials | Identified exit to Mines 780 | -9/Materials | Identified exit to Storage 785 | -9/Materials | Discovered new exit (range 3) 921 | -9/Materials | Build established: Tank 1002 | -9/Materials | Entered Mines 1022 | -9/Mines | Met a Derelict bent on vengeance 1390 | -9/Mines | Met a Derelict testing a Signal Generator 1400 | -9/Mines | Discovered new exit (range 7) 1510 | -9/Mines | Deemed a non-threat by the Exiles lab entrance 1510 | -9/Mines | Discovered new exit (range 5) 1517 | -9/Mines | Entered Exiles 1560 | -9/Exiles | Met 8R-AWN 1585 | -9/Exiles | Met EX-HEX 1669 | -9/Exiles | Met EX-DEC 1699 | -9/Exiles | Learned location of Zion (-6) 1826 | -9/Exiles | Build established: Mutant 2000 | -9/Exiles | Met EX-BIN 2019 | -9/Exiles | Aligned with FarCom system 2021 | -9/Exiles | Given EX-Vault access code 2059 | -9/Exiles | Opened EX-Vault 2067 | -9/Exiles | Found Latent Energy Streamer 2070 | -9/Exiles | Found Gui. Plasma Cannon 2103 | -9/Exiles | Warned to stay clear of 0b10 Research branches 2273 | -9/Exiles | Attacked by the Exiles 2398 | -9/Exiles | Core integrity fell below 50% 2461 | -9/Exiles | Lost 6 parts (1p2n1u2w) 2503 | -9/Exiles | Core integrity fell below 20% 2519 | -9/Exiles | Destroyed by 8R-AWN with 8R-AWN's Boregun Last Messages --------------- 02499_ System corrupted: Component data lost. 02502_ Wall collapses. 02502_ Penetrated by HV Slug. 02502_ HV Slug penetrates Earth. 02502_ HV Slug penetrates Machine. 02502_ HV Slug penetrates Wall. 02507_ Penetrated by HV Slug. 02507_ HV Slug penetrates Earth. 02507_ Penetrated by HV Slug. 02507_ HV Slug penetrates Earth. 02509_ Acquired 7 matter. 02511_ Penetrated by HV Slug. 02511_ HV Slug penetrates Earth. 02511_ Penetrated by HV Slug. 02511_ HV Slug penetrates Earth. 02515_ Penetrated by HV Slug. 02515_ HV Slug penetrates Earth. 02515_ Penetrated by HV Slug. 02515_ HV Slug penetrates Earth. 02519_ Penetrated by HV Slug. Map ----- +----------------------------------------------------+ | ?????????????????????????????????????????????????? | | ?????????????????????????????????????????????????? | | ?????????????????????????????????????????????????? | | ?????????????????????????????????????????????????? | | ?????????????????????????????????????????????????? | | ?????????????????????????????????????????????????? | | ?????????????????????????????????????????????????? | | ?????????????????????????????????????????????????? | | ?????????????????????????????????????????????????? | | ?????????????????????????????????????????????????? | | ?????????????????????????????????????????????????? | | ?????????????????????????????????????????????????? | | ?????????????????????????????????????????????????? | | ?????????????????????????????????????????????????" | | ?????????????????????????#??????????????????????#" | | ????????????????????????? ??????????????????????#" | | ????????????????????????? ??????????????????????#" | | ????????????????????????# #?????????????????????#" | | ????????????????????????# #??????????????????????# | | ????????????????????????# #??????????????????????? | | ????????????????????????# #??????????????????????? | | ????????????????????????# #??????????????????????? | | ???????? ??????????????##;####???????????????????? | | ??????? ######???????#!!! #???????????????????? | | ??????? #""#??????# % #???????????????????? | | ??????? ??????# @ #???????????????????? | | ???????" #????## g ##????????????#?????? | | ???????" #####" ;#??????????? ""???? | | ????????# #;" ##???????????" """#?? | | ?????????# # ###????????????" ??? | | ????????????# #?????????????"" ??? | | ?????????????### ####??????????"" "#?? | | ???????????????### # #???????? ""??? | | ?????????######## #?????????" "???? | | ???????? " !! #?????????# #???? | | ???# "! ""##???### ###?# | | ??????# #! ; ; % #####X# #"### | | ?????# "! ## ; """" | | ?????# ### !"" " #### #; % "" " | | ?????????##########??###;;# % " | | ???????????????????????# ?### | | ???????????????????????# #???### | | ???????????????????????????????## | | ????????????????????????????????## | | ?????????????????????????????????##" | | ??????????????????????????????????#""" | | ?????????????????????????????????##" | | ?????????????????????????????????#"" | | ?????????????????????????????????#""" "" | | ?????????????????????????????????""" """ | +----------------------------------------------------+ Best States ------------- Heat Dissipation 28 Energy Generation 12 Energy Capacity 265 Matter Stores 300 Matter Capacity 300 Sight Range 16 Terrain Scan Density 10 Armor Coverage 150 Core Shielding 20 Propulsion Shielding 66 Evasion (%) 50 Recoil Reduction 3 Item Schematics ----------------- None Robot Schematics ------------------ None Fabricated ------------ Nothing Repaired ---------- Nothing Alien Tech Used ----------------- None Achievements -------------- None Challenges ------------ None Game ------ Seed EtherialThunderPit Manual? 0 Play Time 00:16:37 Cumulative 187.3 hours Start 2025.08.23 @ 07:32:35 End 2025.08.23 @ 07:48:43 Sessions 1 Manual Loads 0 Difficulty Rogue Special Mode None Game No. 294 Rogue 294 Adventurer 0 Explorer 0 Win Type - Total 4 Types 3/0/1/0/0/0/0/0/0/0 Lore% 79 Gallery% 74 Achievement% 55 Wizard Run 0 Options --------- Layout 1 ASCII 0 Keyboard 0 Movement Mouse Keybinds 0 Fullscreen 1 Font 24/Smallcaps Map View 50x40 Zoom Use 0% Tactical HUD 1 Map Filters NONE Filters NONE Steam 1 RUN: c65b8ad1-e28f-4885-9189-a524589b54fd